Cogmind - Beta 13 @@@ ROGUE MODE // 2024.04.03 @ 00:27:17 Player: deadnoob Result: Destroyed by AG-09156 with Assembled Focal Cannon Performance ------------- Evolutions (3) 1500 Regions Visited (10) 2000 Robots Destroyed (108) 540 Value Destroyed (2942) 2942 Prototype IDs (41) 820 Alien Tech Used (0) 0 Bonus (135) 135 TOTAL SCORE: 7937 Bonus ------- High Alert Combat Kills 55 Follower Combat Kills 118 Aligned with FarCom 300 Friendly Fire -338 Cogmind --------- Core Integrity 0/700 Matter 220/300 Energy 209/310 System Corruption 5% Temperature Warm (118) Movement Treading (360) Ox2 Location -7/Deep Caves Parts ------- > --- POWER (1) -------- Reinforced Fission Core > --- PROPULSION (4) --- Spiked Medium Treads Zionite Composite Leg I Assembled Alloy Leg > --- UTILITY (6) ------ High-capacity Storage Unit Zionite Weapon Casing Zionite Heavy Carapace GOLEM Unit > --- WEAPON (2) ------- Improved EM Pulse Cannon > --- INVENTORY (20) --- Zionite Light DM Reactor Experimental Heat Sink Zionite Biocell (600) Zionite Biocell (600) Zionite Biocell (600) Zionite Biocell (600) Advanced Weapon Cycler Zionite Heavy Carapace AS-neutralizer No. 17b Enhanced Autogun 8R-AWN's Boregun Rocket Launcher Missile Launcher Heavy Missile Launcher Makeshift Hammer Peak State ------------ > --- POWER ------------ Reinforced Fission Core > --- PROPULSION ------- Spiked Medium Treads Spiked Medium Treads Zionite Composite Leg I Assembled Alloy Leg > --- UTILITY ---------- Experimental Heat Sink High-capacity Storage Unit Experimental Targeting Computer Advanced Weapon Cycler GOLEM Unit > --- WEAPON ----------- Improved EM Pulse Cannon > --- INVENTORY -------- Zionite Light DM Reactor Zionite Biocell Zionite Biocell Zionite Biocell Zionite Biocell Zionite Weapon Casing Zionite Weapon Casing Zionite Light Carapace Zionite Heavy Carapace Zionite Heavy Carapace AS-neutralizer No. 17b Enhanced Autogun 8R-AWN's Boregun Rocket Launcher Missile Launcher Heavy Missile Launcher Makeshift Hammer [Rating: 83] Favorites ----------- Power Cold Fusion Reactor Engine Ion Engine Power Core Reinforced Fission Core Reactor Cold Fusion Reactor Propulsion Light Treads Treads Light Treads Leg Advanced Myomer Leg Flight Unit Improved Flight Unit Utility High-capacity Storage Unit Device Advanced Weapon Cycler Storage High-capacity Storage Unit Processor Experimental Targeting Computer Hackware Hacking Suite Protection Light Armor Plating Weapon 8R-AWN's Boregun Energy Gun EM Pulse Gun Energy Cannon Improved EM Pulse Cannon Ballistic Gun 8R-AWN's Boregun Launcher Grenade Launcher Impact Weapon Maul Slashing Weapon Katana Special Melee Weapon Datajack Build | -11 -10 -10 -10 -9 -8 -8 -7 -7 -7 -7 ------- Run | Yrd Mat Min Exi Min Mat Sto Fac Low Zio Dee Slots Evolved 6 | . . . . . 4 . 2 . . . Power . | . . . . . . . . . . . Propulsion 2 | . . . . . 2 . . . . . Utility 4 | . . . . . 2 . 2 . . . Weapon . | . . . . . . . . . . . Parts Attached 145 | . 1 4 25 9 4 18 22 2 33 27 Power 3 | . . 1 1 . . . 1 . . . Engine . | . . . . . . . . . . . Core 2 | . . 1 . . . . 1 . . . Reactor 1 | . . . 1 . . . . . . . Propulsion 22 | . . . 4 . 2 4 4 . 7 1 Treads 18 | . . . 2 . 2 3 4 . 7 . Leg 3 | . . . 2 . . . . . . 1 Wheel . | . . . . . . . . . . . Hover . | . . . . . . . . . . . Flight 1 | . . . . . . 1 . . . . Utility 56 | . . 2 10 3 2 5 6 2 10 16 Device 27 | . . 2 9 2 2 3 2 1 3 3 Storage 2 | . . . 1 . . . . . . 1 Processor 3 | . . . . . . . 2 1 . . Hackware 1 | . . . . . . . 1 . . . Protection 23 | . . . . 1 . 2 1 . 7 12 Artifact . | . . . . . . . . . . . Weapon 64 | . 1 1 10 6 . 9 11 . 16 10 Energy Gun 4 | . . 1 3 . . . . . . . Energy Cannon 4 | . . . . . . . . . . 4 Ballistic Gun 27 | . . . 3 2 . 5 4 . 10 3 Ballistic Cannon . | . . . . . . . . . . . Launcher 10 | . 1 . 1 2 . 1 3 . 1 1 Special Weapon . | . . . . . . . . . . . Impact Weapon 1 | . . . . . . . . . 1 . Slashing Weapon 17 | . . . 3 2 . 2 4 . 4 2 Piercing Weapon . | . . . . . . . . . . . Special Melee Weapon 1 | . . . . . . 1 . . . . Unidentified Prototypes 17 | . . . 7 1 . 2 2 . . 5 Parts Lost 24 | . . . 1 . . . . . 14 9 Power . | . . . . . . . . . . . Propulsion 8 | . . . . . . . . . 5 3 Utility 12 | . . . 1 . . . . . 6 5 Weapon 4 | . . . . . . . . . 3 1 Highest Loss Streak 8 | . . . 1 . . . . . 8 3 To Critical Strikes 2 | . . . 1 . . . . . 1 . Average Slot Usage (%) 93 | . 85 87 90 97 100 99 100 100 96 91 Core 4 | . . 10 5 . . . 4 7 7 7 Reactor 5 | . . . 8 14 9 9 2 . . . Treads 20 | . . . 22 . 18 28 30 30 29 24 Leg 8 | . 28 28 5 28 18 7 . . . 5 Device 7 | . . 2 4 8 18 16 10 7 6 11 Storage 10 | . 14 14 14 14 9 9 7 7 7 7 Processor 4 | . . . . . . . 15 23 16 7 Protection 5 | . . . . 3 9 10 7 7 11 11 Energy Gun 3 | . 26 16 4 . . . . . . . Ballistic Gun 10 | . . . 11 20 . 6 4 . 13 10 Launcher 3 | . 1 11 2 3 9 5 4 7 . . Slashing Weapon 4 | . . . 8 3 9 3 2 7 1 . Naked Turns . | . . . . . . . . . . . Heaviest Build 85 | 14 15 19 69 67 62 69 82 75 85 85 Greatest Support 104 | 20 20 20 60 60 60 80 83 83 104 104 Greatest Overweight (x) 1 | . . . 1 1 1 1 . . 1 1 Average Overweight (x) . | . . . . . 1 . . . . . Largest Inventory Capacity 20 | 8 8 8 20 20 20 20 20 20 20 20 Average Capacity 16 | 8 8 8 13 20 20 20 20 20 20 20 Most Carried 20 | 6 8 8 20 20 19 20 20 20 20 20 Average Carried 14 | 6 7 7 8 19 16 17 19 20 18 15 Final Capacity 20 | 8 8 8 20 20 20 20 20 20 20 20 Final Carried 20 | 6 8 8 20 20 16 20 20 20 12 16 Class Distribution -------------------- 57% | Mutant 39% | Scavenger-Mutant Dominant Class ---------------- Mutant | -10/Materials Mutant | -10/Mines Mutant | -10/Exiles Mutant | -9/Mines Scavenger-Mutant | -8/Materials Scavenger-Mutant | -8/Storage Scavenger-Mutant | -7/Factory Mutant | -7/Lower Caves Scavenger-Mutant | -7/Zion Scavenger-Mutant | -7/Deep Caves Resources | -11 -10 -10 -10 -9 -8 -8 -7 -7 -7 -7 ----------- Run | Yrd Mat Min Exi Min Mat Sto Fac Low Zio Dee Matter Collected 4765 | 200 3 66 925 169 . 843 404 . 1550 605 Remotely . | . . . . . . . . . . . Salvage Created 5607 | . 93 151 567 503 7 1171 783 . 1715 617 Parts 409 | . 12 6 72 19 5 73 50 . 131 41 Haulers Intercepted 3 | . . . . . . 2 1 . . . Recyclers Shooed 5 | . . . . . . 4 1 . . . Parts Field Recycled . | . . . . . . . . . . . Retrieved Matter . | . . . . . . . . . . . Parts Self-Destructed 4 | . . . . . . . . 4 . . Prevented . | . . . . . . . . . . . Kills | -11 -10 -10 -10 -9 -8 -8 -7 -7 -7 -7 ------- Run | Yrd Mat Min Exi Min Mat Sto Fac Low Zio Dee Combat Hostiles Destroyed 60 | . 4 2 4 4 3 16 11 . 6 10 Melee 9 | . . . 1 . . 5 1 . 2 . Guns 28 | . 1 1 1 2 . 6 7 . 4 6 AOE 22 | . 3 1 2 2 3 5 3 . . 3 Classes Destroyed 20 | . 3 1 3 2 . 4 2 . 3 2 Worker 4 | . 1 . . . . 2 1 . . . Builder 3 | . . . . 1 . . 2 . . . Hauler 3 | . . . . . . 2 1 . . . Recycler 8 | . . 1 . 4 . 2 1 . . . Operator 2 | . . . . . . 2 . . . . Turret 1 | . . . 1 . . . . . . . Watcher 5 | . . . . . . 2 3 . . . Swarmer 12 | . 3 . . . 3 3 3 . . . Grunt 21 | . 1 2 . 3 . 9 6 . . . Brawler 1 | . . . . 1 . . . . . . Duelist 1 | . . . . . . . 1 . . . Sentry 4 | . . . . . . 4 . . . . Programmer 1 | . . . . . . . 1 . . . Zionite 65 | . . . 5 . . . . . 60 . Z-Technician 5 | . . . . . . . . . . 5 Z-Light 6 | . . . . . . . . . . 6 Tinkerer 5 | . . . . . . . . . 5 . Assembled 6 | . . . 3 . . . . . . 3 Golem 1 | . . . . . . . . . . 1 Thug 1 | . . . . . . 1 . . . . Butcher 2 | . . . . . . . . . 2 . Marauder 2 | . . . . . . . . . 2 . Mutant 1 | . . . . . . . . . 1 . Best Kill Streak 10 | . 4 3 5 3 3 3 6 . 10 5 Combat Bots Only 5 | . 3 2 2 3 3 3 4 . 1 5 Max Kills in Single Turn 4 | . 4 1 2 2 2 2 2 . 2 2 Gunslinging . | . . . . . . . . . . . Exploded 3 | . 3 1 1 2 2 2 2 . . 2 Melee 1 | . . . 1 . . 1 1 . 1 . Uniques/NPCs Destroyed 5 | . . . 4 . . . . . 1 . EX-BIN (-10/Exiles) EX-DEC (-10/Exiles) EX-HEX (-10/Exiles) 8R-AWN (-10/Exiles) Imprinter (-7/Zion) Combat | -11 -10 -10 -10 -9 -8 -8 -7 -7 -7 -7 -------- Run | Yrd Mat Min Exi Min Mat Sto Fac Low Zio Dee Hostile Shots Fired 437 | . 12 4 35 4 5 39 25 . 257 56 Missed 112 | . 1 2 8 . 5 14 5 . 70 7 Damage Taken 6904 | . 142 71 472 46 24 375 272 . 3653 1849 Core 852 | . 6 . 60 . . 64 45 . 267 410 Absorbed by Shields 140 | . . . . . . . 32 . 108 . Redirected to Shielding 162 | . . . . . . . . . . 162 Ignored by Resistances 94 | . . . . . . . . . 94 . Core Remaining (%) 87 | 100 . . . 73 . 88 . . . . Volleys Fired 340 | . 7 4 61 4 4 51 28 . 145 36 Largest 2 | . 2 2 2 2 1 2 2 . 2 2 Hottest 138 | . 90 90 60 60 30 60 60 . 60 138 Shots Fired 646 | . 13 7 119 8 4 96 52 . 291 56 Gun 610 | . 12 6 117 8 . 90 48 . 289 40 Cannon 14 | . . . . . . . . . . 14 Launcher 22 | . 1 1 2 . 4 6 4 . 2 2 Special . | . . . . . . . . . . . Kinetic 591 | . . . 116 8 . 90 48 . 289 40 Thermal 10 | . 6 3 1 . . . . . . . Explosive 22 | . 1 1 2 . 4 6 4 . 2 2 Electromagnetic 23 | . 6 3 . . . . . . . 14 Robot Hit Streak 23 | . 3 3 7 2 1 5 6 . 23 9 Robot Miss Streak 8 | . 3 3 8 4 1 4 5 . 3 4 Penetration Max 2 | . . . 2 . . 2 2 . . 1 Secondary Targets 11 | . . . 1 . . . . . 8 2 Max Gunslinging Chain 1 | . . . 1 . . . . . 1 1 Shots Hit Robots 465 | . 4 3 79 9 1 56 30 . 239 44 Core Hits 225 | . 6 5 29 9 3 34 26 . 92 21 Critical Kills 32 | . . . 5 1 . 10 9 . 2 5 Critical Parts Destroyed 35 | . . . 8 1 . 15 8 . 1 2 Critical Strikes 84 | . . . 23 2 . 26 17 . 9 7 Destroy 75 | . . . 21 2 . 25 17 . 3 7 Sever 9 | . . . 2 . . 1 . . 6 . Melee Attacks 123 | . . . 36 5 . 24 2 . 49 7 Impact . | . . . . . . . . . . . Slashing 122 | . . . 36 5 . 23 2 . 49 7 Piercing . | . . . . . . . . . . . Sneak Attacks 20 | . . . . 5 . 9 . . . 6 Combat Hostiles . | . . . . . . . . . . . Follow-up Attacks . | . . . . . . . . . . . Damage Inflicted 12444 | . 213 166 1936 522 166 2154 1054 . 4708 1525 Guns 6216 | . 52 24 1014 90 . 926 610 . 3016 484 Cannons 247 | . . . . . . . . . . 247 Explosions 1914 | . 161 135 87 107 166 469 414 . 196 179 Melee 3990 | . . . 835 314 . 754 30 . 1442 615 Ramming 77 | . . 7 . 11 . 5 . . 54 . Kinetic 6140 | . . . 1014 90 . 926 610 . 3016 484 Thermal 211 | . 25 79 . 107 . . . . . . Explosive 1740 | . 161 68 87 . 166 469 414 . 196 179 Electromagnetic 286 | . 27 12 . . . . . . . 247 Impact . | . . . . . . . . . . . Slashing 3990 | . . . 835 314 . 754 30 . 1442 615 Piercing . | . . . . . . . . . . . Highest Corruption 5 | . . . . . . . 1 1 5 5 Average Corruption 2 | . . . . . . . 1 1 2 5 Corruption Purged . | . . . . . . . . . . . Corruption Blocked . | . . . . . . . . . . . Effects 65 | . . . . . . . 4 1 26 34 Message Errors 13 | . . . . . . . 1 1 5 6 Matter Fused 12 | . . . . . . . . . 5 7 Heat Flow Errors 12 | . . . . . . . 2 . 6 4 Energy Discharges 12 | . . . . . . . 1 . 4 7 Parts Rejected 1 | . . . . . . . . . . 1 Data Loss (minor) 8 | . . . . . . . . . 3 5 Data Loss (major) 2 | . . . . . . . . . . 2 Misfires 3 | . . . . . . . . . 2 1 Alerts 1 | . . . . . . . . . 1 . Weapon Failures 1 | . . . . . . . . . . 1 Overload Shots . | . . . . . . . . . . . Overflow Damage 609 | . . . . . . 113 32 . 175 289 Projectiles . | . . . . . . . . . . . Explosions 112 | . . . . . . 7 32 . 73 . Melee 497 | . . . . . . 106 . . 102 289 Knockbacks . | . . . . . . . . . . . Impact . | . . . . . . . . . . . Kinetic . | . . . . . . . . . . . Secondary . | . . . . . . . . . . . Self-Inflicted Damage 270 | . 40 38 37 . 24 14 . . 117 . Shots 7 | . 1 1 1 . 1 1 . . 2 . Rammed 7 | . . . . . . 1 . . 6 . Targets Rammed 12 | . . 2 . 3 . 1 . . 6 . Kicked 5 | . . 2 . 3 . . . . . . Crushed . | . . . . . . . . . . . Highest Temperature 327 | . 180 99 42 1 4 48 136 . 327 267 Average Temperature 73 | . 82 51 14 1 2 13 32 . 89 103 Received Heat Transfer 1245 | . 30 36 . 27 . 189 31 . 578 354 Effects 3 | . . . . . . . . . 1 2 Shutdowns 1 | . . . . . . . . . 1 . Interference 2 | . . . . . . . . . . 2 Siege Activations . | . . . . . . . . . . . Robots Corrupted 1 | . . . . . . . . . . 1 Combat Hostiles 1 | . . . . . . . . . . 1 Parts Fried . | . . . . . . . . . . . Impact Corruptions . | . . . . . . . . . . . Robots Melted . | . . . . . . . . . . . Combat Hostiles . | . . . . . . . . . . . Parts Melted 6 | . . . . . . . . . 6 . Heat Transferred 411 | . 74 187 . 150 . . . . . . Parts Sabotaged . | . . . . . . . . . . . Parts Stolen . | . . . . . . . . . . . Parts Stripped . | . . . . . . . . . . . Power Chain Reactions 1 | . . 1 . . . . . . . . Alert | -11 -10 -10 -10 -9 -8 -8 -7 -7 -7 -7 ------- Run | Yrd Mat Min Exi Min Mat Sto Fac Low Zio Dee Peak Influence 485 | . 185 72 . 162 120 485 466 . . . Initial 105 | . . 72 . . 10 50 105 . . . Average 137 | . 56 51 . 12 56 303 169 . . . Maximum Alert Level 2 | . . . . . . 2 2 . . . Low Security (%) 70 | 100 100 100 . 100 100 17 68 . . . Level 1 22 | . . . . . . 64 22 . . . Level 2 6 | . . . . . . 17 8 . . . Level 3 . | . . . . . . . . . . . Level 4 . | . . . . . . . . . . . Level 5 . | . . . . . . . . . . . High Security . | . . . . . . . . . . . Max Security . | . . . . . . . . . . . Squads Dispatched 10 | . 2 . . . . 4 4 . . . Investigation 3 | . 1 . . . . 1 1 . . . Extermination 1 | . . . . . . . 1 . . . Reinforcement 6 | . 1 . . . . 3 2 . . . Assault . | . . . . . . . . . . . Garrison . | . . . . . . . . . . . Intercept . | . . . . . . . . . . . Searches Triggered . | . . . . . . . . . . . Construction Impeded 3 | . . . . . . 1 2 . . . Haulers Reinforced . | . . . . . . . . . . . Active Scanning Responses . | . . . . . . . . . . . Cargo Convoy Interrupts . | . . . . . . . . . . . Stealth | -11 -10 -10 -10 -9 -8 -8 -7 -7 -7 -7 --------- Run | Yrd Mat Min Exi Min Mat Sto Fac Low Zio Dee Distress Signals 3 | . 1 . . . . . 2 . . . Communications Jammed 6 | . . . . . . 6 . . . . Distress Signals 6 | . . . . . . 6 . . . . Times Spotted 178 | . 8 2 26 5 3 26 16 . 81 11 Peak Tracking Total 10 | . 5 2 10 3 2 3 6 . 5 5 Tactical Retreats 32 | . . . 13 . . 2 . . 17 . Traps | -11 -10 -10 -10 -9 -8 -8 -7 -7 -7 -7 ------- Run | Yrd Mat Min Exi Min Mat Sto Fac Low Zio Dee Traps Triggered . | . . . . . . . . . . . Indirectly . | . . . . . . . . . . . Trap Hack Attempts 28 | . . . . . . 28 . . . . Triggered . | . . . . . . . . . . . Disarmed 1 | . . . . . . 1 . . . . Reprogrammed 11 | . 6 . . . . 5 . . . . Reused 4 | . . . 4 . . . . . . . Traps Extracted 6 | . . . 1 . . 5 . . . . Installed 5 | . . . 5 . . . . . . . Triggered 2 | . . . . . . . . 2 . . Most Traps Carried 4 | . . 4 4 . . . . . . . Machines | -11 -10 -10 -10 -9 -8 -8 -7 -7 -7 -7 ---------- Run | Yrd Mat Min Exi Min Mat Sto Fac Low Zio Dee Machines Disabled 36 | . . . 22 2 1 7 4 . . . Max in Single Turn 2 | . . . 2 1 1 1 2 . . . Machines Repaired . | . . . . . . . . . . . Machines Dismantled . | . . . . . . . . . . . Machines Sabotaged . | . . . . . . . . . . . Overloaded Fab Kills . | . . . . . . . . . . . Hacking | -11 -10 -10 -10 -9 -8 -8 -7 -7 -7 -7 --------- Run | Yrd Mat Min Exi Min Mat Sto Fac Low Zio Dee Machines Accessed 16 | . 6 1 2 . . 5 2 . . . Terminals 10 | . 5 . . . . 4 1 . . . Fabricators 1 | . . . . . . . 1 . . . Repair Stations . | . . . . . . . . . . . Recycling Units 2 | . 1 . . . . 1 . . . . Scanalyzers . | . . . . . . . . . . . Garrison Access . | . . . . . . . . . . . Total Hacks 47 | . 22 1 2 . . 18 4 . . . Successful 22 | . 10 1 2 . . 8 1 . . . Failed 24 | . 11 . . . . 10 3 . . . Catastrophic 3 | . . . . . . 2 1 . . . Database Lockouts 1 | . 1 . . . . . . . . . Manual 41 | . 17 . 1 . . 15 2 . 6 . Terminals 35 | . 21 . . . . 12 2 . . . Fabricators 2 | . . . . . . . 2 . . . Repair Stations . | . . . . . . . . . . . Recycling Units 7 | . 1 . . . . 6 . . . . Scanalyzers . | . . . . . . . . . . . Garrison Access . | . . . . . . . . . . . Terminal Hacks 15 | . 6 1 2 . . 5 1 . . . Record 1 | . . . 1 . . . . . . . Part Schematic 1 | . 1 . . . . . . . . . Robot Analysis 2 | . 1 . . . . 1 . . . . Open Door 2 | . . 1 . . . 1 . . . . Branch Access Points 1 | . . . . . . . 1 . . . Recycling Unit Index 1 | . 1 . . . . . . . . . Unreport Threat 1 | . . . . . . 1 . . . . Locate Traps 2 | . 1 . . . . 1 . . . . Reprogram Traps 1 | . 1 . . . . . . . . . Zone Layout 2 | . 1 . . . . 1 . . . . Derelict Proto ID Bank 1 | . . . 1 . . . . . . . Fabricator Hacks . | . . . . . . . . . . . Repair Station Hacks . | . . . . . . . . . . . Recycling Unit Hacks 1 | . . . . . . 1 . . . . Retrieve Components 1 | . . . . . . 1 . . . . Scanalyzer . | . . . . . . . . . . . Garrison Access Hacks . | . . . . . . . . . . . Unauthorized Hacks 6 | . 4 . . . . 2 . . . . Terminals 3 | . 3 . . . . . . . . . Track 2 | . 2 . . . . . . . . . Botnet 1 | . 1 . . . . . . . . . Fabricators . | . . . . . . . . . . . Repair Stations . | . . . . . . . . . . . Recycling Units 3 | . 1 . . . . 2 . . . . Reject 1 | . . . . . . 1 . . . . Mask 1 | . . . . . . 1 . . . . Tunnel 1 | . 1 . . . . . . . . . Scanalyzers . | . . . . . . . . . . . Garrison Access . | . . . . . . . . . . . Data Cores Recovered . | . . . . . . . . . . . Used . | . . . . . . . . . . . Hacking Detections 11 | . 5 . . . . 4 2 . . . Full Trace Events 3 | . 1 . . . . 1 1 . . . Feedback Events 1 | . . . . . . . 1 . . . Corruption 1 | . . . . . . . 1 . . . Feedback Blocked . | . . . . . . . . . . . Robot Schematics Acquired 3 | . . . . . . . . . 3 . Robots Built . | . . . . . . . . . . . Authchips . | . . . . . . . . . . . Time . | . . . . . . . . . . . Total Robot Build Rating . | . . . . . . . . . . . Part Schematics Acquired 5 | . 1 . . . . . . . 4 . Parts Built . | . . . . . . . . . . . Authchips . | . . . . . . . . . . . Time . | . . . . . . . . . . . Total Part Build Rating . | . . . . . . . . . . . Parts Repaired . | . . . . . . . . . . . Time . | . . . . . . . . . . . Parts Recycled . | . . . . . . . . . . . Recycled Matter . | . . . . . . . . . . . Retrieved Matter . | . . . . . . . . . . . Retrieved Components 9 | . . . . . . 9 . . . . Parts Scanalyzed . | . . . . . . . . . . . Part Schematics Acquired . | . . . . . . . . . . . Parts Damaged . | . . . . . . . . . . . Bothacking | -11 -10 -10 -10 -9 -8 -8 -7 -7 -7 -7 ------------ Run | Yrd Mat Min Exi Min Mat Sto Fac Low Zio Dee Used RIF Installer . | . . . . . . . . . . . Robots Hacked . | . . . . . . . . . . . Non-combat . | . . . . . . . . . . . Combat . | . . . . . . . . . . . Robot Hacks Applied . | . . . . . . . . . . . Relay Couplers Released . | . . . . . . . . . . . Fabnet Peak Effective % . | . . . . . . . . . . . Robots Rewired . | . . . . . . . . . . . Allies Hacked . | . . . . . . . . . . . Hacks Repelled . | . . . . . . . . . . . Allies | -11 -10 -10 -10 -9 -8 -8 -7 -7 -7 -7 -------- Run | Yrd Mat Min Exi Min Mat Sto Fac Low Zio Dee Total Allies 5 | . . . . 3 . 2 . . . . Largest Group 3 | . . . . 3 . 2 . . . . Highest-Rated Group 62 | . . . . 40 . 62 . . . . Highest-Rated Ally 31 | . . . . 16 . 31 . . . . Total Orders . | . . . . . . . . . . . Ally Attacks 27 | . . . . 10 . 17 . . . . Total Damage 337 | . . . . 107 . 230 . . . . Kills 4 | . . . . 2 . 2 . . . . Allies Corrupted . | . . . . . . . . . . . Allies Melted . | . . . . . . . . . . . Intel | -11 -10 -10 -10 -9 -8 -8 -7 -7 -7 -7 ------- Run | Yrd Mat Min Exi Min Mat Sto Fac Low Zio Dee Robot Analysis Total 2 | . 1 . . . . 1 . . . . Derelict Logs Recovered 5 | . . 2 . 1 . . . 2 . . Drone Launches . | . . . . . . . . . . . Drone Recoveries . | . . . . . . . . . . . Exploration | -11 -10 -10 -10 -9 -8 -8 -7 -7 -7 -7 ------------- Run | Yrd Mat Min Exi Min Mat Sto Fac Low Zio Dee Turns Passed 11217 | 2 365 770 3571 1093 69 1256 884 150 1760 1297 Spaces Moved 5681 | 2 261 524 1823 628 32 577 474 89 721 550 Core . | . . . . . . . . . . . Treads 3442 | . . . 1233 . . 375 474 89 721 550 Legs 2239 | 2 261 524 590 628 32 202 . . . . Wheels . | . . . . . . . . . . . Hover . | . . . . . . . . . . . Flight . | . . . . . . . . . . . Fastest Speed 120 | 120 120 120 120 120 190 120 160 167 162 162 Average Speed 164 | 120 120 120 170 165 190 168 162 167 166 202 Slowest Speed 260 | 120 120 120 240 190 190 190 167 167 255 260 Overloaded Moves . | . . . . . . . . . . . Propulsion Burnouts . | . . . . . . . . . . . Robots Hopped . | . . . . . . . . . . . Cave-ins Triggered . | . . . . . . . . . . . Exploration Rate (%) 49 | 2 57 90 91 95 7 46 13 18 49 73 Regions Visited 10 Branch Regions 7 Pre-discovered Areas 6 | . 1 3 1 1 . . . . . . Known Exits Taken 2 | . . . . . . . 1 1 . . Unknown Exits Taken 8 | 1 1 1 1 1 1 1 . . 1 . Scrap Searched 3 | . . 1 . 2 . . . . . . Spaces Dug 65 | . 4 9 . . . 24 22 . . 6 Terrain Destroyed 251 | . 4 11 28 22 22 72 56 . 21 15 Melee 4 | . . . . . . 2 1 . . 1 Projectile 55 | . . . 16 4 . 22 7 . 3 3 AOE 187 | . 4 11 10 18 22 48 46 . 18 10 Terrain Rammed . | . . . . . . . . . . . Walls Destroyed . | . . . . . . . . . . . Machines Disabled . | . . . . . . . . . . . Actions | -11 -10 -10 -10 -9 -8 -8 -7 -7 -7 -7 --------- Run | Yrd Mat Min Exi Min Mat Sto Fac Low Zio Dee Total 6906 | 1 299 659 2116 661 39 760 556 90 1037 688 Wait 447 | . 29 118 128 8 . 46 7 . 73 38 Move 5671 | 1 260 523 1822 627 31 576 473 88 720 550 Hop . | . . . . . . . . . . . Pick Up 63 | . 2 3 18 2 . 7 10 . 5 16 Fast Attach 30 | . . 2 9 2 . 3 . . 7 7 Attach 27 | . . 1 3 . 4 1 3 . 10 5 Detach 12 | . . 1 6 . . 3 . . 1 1 Swap 88 | . 1 1 13 7 . 14 19 2 16 15 Drop 60 | . . 4 15 3 . 6 14 . 5 13 Fire 340 | . 7 4 61 4 4 51 28 . 145 36 Melee 123 | . . . 36 5 . 24 2 . 49 7 Ram . | . . . . . . . . . . . Kick 5 | . . 2 . 3 . . . . . . Crush 7 | . . . . . . 1 . . 6 . Escape Stasis . | . . . . . . . . . . . Rewire . | . . . . . . . . . . . Trap 33 | . . . 5 . . 28 . . . . Miscellaneous . | . . . . . . . . . . . Route ------- -11/Scrapyard -10/Materials (discovered 2 exits: [*Mat] / *Min) -10/Mines (discovered 3 exits: [*Mat x2] / *Exi) -10/Exiles (discovered 2 exits: [*Min x2]) -9/Mines (discovered 2 exits: [*Mat x2]) -8/Materials -8/Storage -7/Factory (discovered 3 exits: [*Fac] / *Low x2) -7/Lower Caves -7/Zion (discovered 2 exits: [*Dee] / [*Pro]) -7/Deep Caves History --------- Turn | Location | Event 1 | -11/Scrapyard | Discovered new exit (range 1) 3 | -11/Scrapyard | Entered Materials 184 | -10/Materials | Central database locked down 264 | -10/Materials | Discovered new exit (range 4) 305 | -10/Materials | Build established: Mutant 350 | -10/Materials | Discovered new exit (range 15) 368 | -10/Materials | Entered Mines 451 | -10/Mines | Met a Derelict who couldn't figure out how to use a Trap Extractor 696 | -10/Mines | Learned location of Zion (-7) 741 | -10/Mines | Discovered new exit (range 10) 878 | -10/Mines | Learned location of Storage (-8) 982 | -10/Mines | Found a hidden stash of uninstalled traps 1115 | -10/Mines | Met a Derelict testing a Signal Generator 1115 | -10/Mines | Discovered new exit (range 5) 1121 | -10/Mines | Found Signal Generator 1134 | -10/Mines | Deemed a non-threat by the Exiles lab entrance 1134 | -10/Mines | Discovered new exit (range 5) 1138 | -10/Mines | Entered Exiles 1154 | -10/Exiles | Discovered new exit (range 15) 1168 | -10/Exiles | Met 8R-AWN 1191 | -10/Exiles | Warned about trapping Exiles lab 1192 | -10/Exiles | Met EX-HEX 1263 | -10/Exiles | Met EX-DEC 1347 | -10/Exiles | Met EX-BIN 1362 | -10/Exiles | Aligned with FarCom system 1363 | -10/Exiles | Given EX-Vault access code 1392 | -10/Exiles | Opened EX-Vault 1399 | -10/Exiles | Found Cloak of Protection 1425 | -10/Exiles | Warned to stay clear of 0b10 Research branches 1595 | -10/Exiles | Discovered new exit (range 14) 2283 | -10/Exiles | Attacked by the Exiles 2427 | -10/Exiles | Found Prototype Ballistic Gun 2434 | -10/Exiles | Found Prototype Ballistic Gun 2456 | -10/Exiles | Identified 8R-AWN's Boregun (x2) 2577 | -10/Exiles | Destroyed EX-BIN 2604 | -10/Exiles | Destroyed EX-DEC 2630 | -10/Exiles | Found Prototype Processor 2646 | -10/Exiles | Destroyed EX-HEX 2685 | -10/Exiles | Found Prototype Device 2685 | -10/Exiles | Identified System Purifier 4417 | -10/Exiles | Destroyed 8R-AWN 4429 | -10/Exiles | Found Prototype Device 4429 | -10/Exiles | Identified AS-neutralizer No. 17b 4442 | -10/Exiles | Found Prototype Processor 4709 | -10/Exiles | Entered Mines 4882 | -9/Mines | Found a damaged Exp. Sensor Array with a note attached 4886 | -9/Mines | Found Prototype Device 4886 | -9/Mines | Identified Exp. Sensor Array 5122 | -9/Mines | Received a Rocket Launcher from a helpful Derelict 5170 | -9/Mines | Discovered new exit (range 4) 5204 | -9/Mines | Assisted by bots powering up and referring to "LRC-V3" 5330 | -9/Mines | Discovered new exit (range 9) 5430 | -9/Mines | Lost 3 allies 5802 | -9/Mines | Entered Materials 5802 | -8/Materials | Evolved 4 slots: Propulsion x2, Utility x2 5822 | -8/Materials | Discovered new exit (range 13) 5871 | -8/Materials | Entered Storage 6104 | -8/Storage | Build established: Scavenger-Mutant 6439 | -8/Storage | Met a pair of Derelict thieves 6680 | -8/Storage | Discovered new exit (range 15) 7127 | -8/Storage | Entered Factory 7127 | -7/Factory | Evolved 2 slots: Utility x2 7127 | -7/Factory | Identified Exp. Targeting Computer 7128 | -7/Factory | Identified Exp. Core Analyzer 7156 | -7/Factory | Identified exit to Lower Caves 7683 | -7/Factory | Discovered new exit (range 9) 7972 | -7/Factory | Build established: Mutant 8011 | -7/Factory | Entered Lower Caves 8031 | -7/Lower Caves | Learned 8 Factory zone layouts 8126 | -7/Lower Caves | A Derelict revealed a hidden shortcut to a safe place 8131 | -7/Lower Caves | Identified exit to Zion 8133 | -7/Lower Caves | Learned Factory terminal intel 8161 | -7/Lower Caves | Entered Zion 8169 | -7/Zion | Attacked by Zionites 8247 | -7/Zion | Discovered new exit (range 15) 8488 | -7/Zion | Spotted 1G-8MC(B) 8497 | -7/Zion | Spotted 8Z-Z60(B) 8591 | -7/Zion | Destroyed 1G-8MC(B) 8634 | -7/Zion | Destroyed 8Z-Z60(B) 8651 | -7/Zion | Lost 4 parts (2n1u1w) 8920 | -7/Zion | Build established: Scavenger-Mutant 9603 | -7/Zion | Destroyed Imprinter 9618 | -7/Zion | Extracted access codes from Imprinter's data core 9811 | -7/Zion | Lost 8 parts (3n3u2w) 9894 | -7/Zion | Opened final containment barrier to the Deep Caves 9918 | -7/Zion | Discovered new exit (range 3) 9918 | -7/Zion | Saw the warning signs outside the Deep Caves entrance 9921 | -7/Zion | Entered Deep Caves 10136 | -7/Deep Caves | Found Surveybot 24 Scanner 10139 | -7/Deep Caves | Found Surveybot 24 Chip 10369 | -7/Deep Caves | Z-Facility disabled 10388 | -7/Deep Caves | Core integrity fell below 50% 10421 | -7/Deep Caves | Found Prototype Protection 10421 | -7/Deep Caves | Identified Zio. Weapon Casing 10474 | -7/Deep Caves | Found Prototype Protection 10474 | -7/Deep Caves | Identified Zio. Heavy Carapace 10546 | -7/Deep Caves | Found Zio. Weapon Casing 10629 | -7/Deep Caves | Found Zio. Heavy Carapace 10792 | -7/Deep Caves | Found Zio. Heavy Carapace 11061 | -7/Deep Caves | Spotted AG-46066 11093 | -7/Deep Caves | Destroyed AG-46066 11099 | -7/Deep Caves | Found GOLEM Unit 11123 | -7/Deep Caves | Lost 3 parts (1n1u1w) 11171 | -7/Deep Caves | Spotted AG-09156 11175 | -7/Deep Caves | Core integrity fell below 20% 11218 | -7/Deep Caves | Destroyed by AG-09156 with Assembled Focal Cannon Last Messages --------------- 11069_ System corrupted: Component data lost. 11091_ Dropped Zio. Biocell. 11092_ Extracted 217 energy. 11092_ Zio. Heavy Carapace destroyed. 11092_ Imp. EM Pulse Cannon destroyed. 11092_ Arm. Treads destroyed. 11093_ Extracted 95 energy. 11093_ AG-46066 system terminally corrupted. 11099_ Acquired GOLEM Unit. 11100_ GOLEM Unit beginning Asb. Alloy Leg integration. 11104_ Acquired 110 matter. 11127_ HOFNL2NNSOJY64P: VY0T 4X GD6SM 11151_ System corrupted: Energy discharge (-124). 11173_ KYQX WL2NN6MFJ3KEH%&